{"text_format":"3","workbook":"xlsx","n_sheets":11,"sheets":["Hinweise","Deckblatt","Vertretungsberechtigung","Maßnahme 1","Maßnahmebeschreibung 1","Maßnahme 2","Maßnahmebeschreibung 2","Maßnahme 3","Maßnahmebeschreibung 3","Maßnahme 4","Maßnahmebeschreibung 4"],"not_rendered":{"defined_names":10,"comments":9},"read":"whole","date_system":"1900"}

{"sheet":"Hinweise","index":0,"n_rows":21,"n_cols":8,"rows_kept":21,"merged":[[2,0,2,6],[4,0,4,7],[5,0,5,7],[6,0,6,7],[7,0,7,7],[8,0,8,7],[9,0,9,7],[10,0,10,7],[11,0,11,7],[12,0,12,7],[13,0,13,7],[14,0,14,7],[15,0,15,7],[16,0,16,7],[17,0,17,7],[18,0,18,7],[19,0,19,7],[20,0,20,7]]}
["Landeshauptstadt Dresden - Jugendamt",{"$nulls":6},"Förderung von Trägern der freien Jugendhilfe"]
[]
["Hinweise zum Fördermittelantrag - Internationale Jugendbegegnungen - 2017"]
[]
["Aus Gründen der Lesbarkeit bedient sich dieses Formular der männlichen Schreibweise, schließt die weibliche Form der Begriffe jedoch selbstverständlich mit ein."]
["Rechtliche Grundlage der Förderung von Trägern der freien Jugendhilfe ist der § 74 SGB VIII und die diesen \n§ ausfüllenden Richtlinien und Vorschiften der Landeshauptstadt Dresden. Ein Rechtsanspruch auf die Gewährung einer Zuwendung ergibt sich daraus nicht."]
["Es können nur Angebote in der Landeshauptstadt Dresden für Dresdner Kinder, Jugendliche und junge Erwachsene, die durch in Dresden ansässige Träger der freien Jugendhilfe erbracht werden, gefördert werden. "]
["Angebote anderer Träger der freien Jugendhilfe, die überregional oder in anderen Gebietskörperschaften tätig sind, können gefördert werden, wenn sie den Bedarf von Dresdner jungen Menschen erfüllen und als Träger der freien Jugendhilfe nach § 75 SGB VIII anerkannt sind."]
["Die Förderung muss form- und fristgerecht beantragt werden. Der Antrag muss vollständig sein. Antragsschluss ist der 31. August 2016. "]
["Fördervoraussetzungen und Zuwendungshöhen für internationale Jugendbewegungen gemäß der aktuell geltenden Verwaltungsvorschrift zur Umsetzung der Förderrichtlinie Jugendhilfe:"]
["Internationale Jugendbegegnungen sind außerschulische Maßnahmen der internationalen Jugendarbeit, \ndie mit ausländischen Partnern durchgeführt werden. Über die gesamte Dauer der Maßnahme ist mit mindestens einem ausländischen Partner ein gemeinsames Programm  durchzuführen. Es soll ein ausgewogenes Verhältnis zwischen Dresdner und ausländischen Jugendlichen gegeben sein. \nDie Begegnung soll mindestens 5 und maximal 21 Tage andauern; An- und Abreise gelten als ein Maßnahmetag. Begegnungen mit Partnern aus Tschechien und Polen im grenznahen Raum sind auch \nab 2 Übernachtungen zuwendungsfähig. Es sollen mindestens 16 junge Menschen an der Begegnung teilnehmen. Das Mindestalter beträgt in der Regel 12 Jahre. "]
["Fördersätze:\n- Begegnung im Inland ohne Übernachtung 5,00 EUR je Tag und Dresdner Teilnehmer\n- Begegnung im Inland mit Übernachtung 10,00 EUR je Tag und Dresdner Teilnehmer/15,00 EUR je Tag und ausländischem Teilnehmer\n- Begegnung im Ausland 20,00 EUR je Tag und Dresdner Teilnehmer\n- jedoch max. 60% der zuwendungsfähigen Gesamtausgaben\n- An- und Abreisetag = 1 Tag\n- Betreuerkosten: Jugendgruppenbetreuer sind in Höhe von 12,5% der Teilnehmerzuwendung förderfähig"]
["Der Antrag besteht aus mehreren Tabellenblättern bzw. Seiten: Deckblatt, Vertretungsberechtigung, Daten/Ausgaben/Finanzierung je Maßnahme 1 Blatt, Maßnahmebeschreibung je Maßnahme 1 Blatt."]
["Die im Antrag dargestellten Ausgaben müssen im direkten Zusammenhang mit dem Vorhaben, der internationalen Jugendbegegnung, stehen. Ausgaben des Antragstellers, die ihm auch anfallen würden, wenn er diese hier zur Beantragung stehende Leistung nicht erbringt, sind nicht zuwendungsfähig."]
["Ausfüllhinweise:"]
["Beginnen Sie mit dem Ausfüllen des Formulars beim Deckblatt."]
["Das Antragsformular enthält Zellverknüpfungen und selbstrechnende Felder. Fehlermeldungen sind erst nach dem vollständigen Ausfüllen der vorgesehenen Felder zu beachten."]
["Zahlen sind fortlaufend und ohne Freizeichen, Punkte oder Währung einzugeben."]
["Tabellenblätter, die nicht für die Antragstellung benötigt werden, sind nicht zu löschen; es sind nur die Tabellenblätter auszudrucken, die ausgefüllt wurden."]
["Druck: Auf Grund verschiedener PC-Einstellungen kann es vorkommen, dass an Ihrem PC für ein hier angelegtes Tabellenblatt 2 Seiten ausgedruckt werden. Bitte richten Sie die Seite neu ein (Menü: \"Ansicht\" -> \"Seitenumbruchvorschau\" -> mit der linken Maustaste die blauen Balken so verschieben, dass nur noch eine Seite angezeigt wird -> Menü: \"Ansicht\" -> \"Normal\"."]
["Bei Fragen zum Ausfüllen des Formulars wenden Sie sich an Frau Schuster, Tel. 4884671, \nE-Mail: nschuster@dresden.de. Inhaltliche Fragen beantwortet Ihnen Frau Murawski, Tel. 4884695, E-Mail: smurawski@dresden.de"]

{"sheet":"Deckblatt","index":1,"n_rows":62,"n_cols":19,"rows_kept":62,"merged":[[1,11,1,18],[2,0,3,9],[2,11,4,18],[4,0,5,9],[6,0,7,9],[6,11,9,18],[8,0,9,9],[12,13,14,17],[19,0,19,18],[21,0,21,1],[21,14,21,18],[22,2,22,13],[22,14,22,17],[24,2,24,13],[24,14,24,17],[26,2,26,13],[26,14,26,17],[28,2,28,13],[28,14,28,17],[30,14,30,17],[32,0,34,7],[32,13,34,18],[33,8,34,12],[35,0,35,11],[35,13,35,18],[36,0,36,11],[36,13,36,18],[37,0,37,11],[37,13,37,18],[38,0,38,11],[38,13,38,18],[39,0,39,11],[39,13,39,18],[44,0,44,3],[44,4,44,6],[44,7,44,9],[44,10,44,12],[44,13,44,15],[44,16,44,18]]}
["Landeshauptstadt Dresden - Jugendamt",{"$nulls":17},"Förderung von Trägern der freien Jugendhilfe 2017 - IB"]
["Antragsteller:",{"$nulls":10},"Aktenzeichen:"]
[]
[]
[]
[{"$nulls":11},"Angebotsbezeichnung:"]
[]
[]
[]
[]
[]
["Antrags- und Bewilligungsbehörde:                                                                                                                                                                                                                                                                                    "]
["Landeshauptstadt Dresden",{"$nulls":12},"Abgabetermin: 31.08.2016"]
["Jugendamt, Abt. Kinder-, Jugend- und"]
["Familienförderung, SG Zuschusswesen"]
["Postfach 12 00 20"]
["01001 Dresden "]
[]
[{"$nulls":14},"Antrag auf Gewährung einer Zuwendung","2017"]
[" - Internationale Jugendbegegnungen -"]
[]
["Nr.",null,null,"Kurzbezeichnung der Maßnahme(n)",{"$nulls":10},"Fördermittelantrag"]
[null,1,{"$nulls":16},"EUR"]
[]
[null,2,{"$nulls":16},"EUR"]
[]
[null,3,{"$nulls":16},"EUR"]
[]
[null,4,{"$nulls":16},"EUR"]
[{"$nulls":14},"Antrag gesamt:"]
[{"$nulls":14},{"$f":"O23+O25+O27+O29","v":0},{"$nulls":3},"EUR"]
[]
["Erforderliche Unterlagen",{"$nulls":12},"                 Liegt dem Jugendamt bereits vor!\nDie Unterlagen müssen nicht erneut eingereicht werden, jedoch ist das Datum der aktuellen Fassung hier zu vermerken!"]
[{"$nulls":8},"Dem Antrag beigefügt:\n(wenn ja, ankreuzen)"]
[]
["Satzung/Ordnung/Gesellschaftervertrag"]
["Aktueller Vereins-/Handelsregisterauszug"]
["Vertretungsberechtigung (Formular siehe Folgeblatt)"]
["Nachweis der Gemeinnützigkeit \n(i. d. R. Steuerfreistellungsbescheid d. Finanzamtes)"]
["Anerkennung nach § 75 SGB VIII (sofern Förderung auf Dauer angelegt oder Träger anderer Gebietskörperschaft angehört)"]
[]
["Ansprechpartner"]
["für Förderung/Finanzen",{"$nulls":9},"für die inhaltliche Arbeit"]
["Name",{"$nulls":3},"Tel.-/Fax-Nr.",null,null,"Email-Adresse",null,null,"Name",null,null,"Tel.-/Fax-Nr.",null,null,"Email-Adresse"]
[]
["Erklärung "]
[null,"Der  Antragsteller erklärt, dass:"]
[null,"-","die Angaben im gesamten Antrag (Deckblatt einschließlich allen Folgeseiten) vollständig und richtig sind;"]
[null,"-","die Grundsätze einer sparsamen und wirtschaftlichen Haushaltsplanung eingehalten wurden;"]
[null,"-","die Gewähr der zweckentsprechenden und wirtschaftlichen Verwendung der Mittel gegeben ist;"]
[null,"-","die fachlichen Voraussetzungen für die geplante Maßnahme erfüllt werden;"]
[null,"-","gemeinnützige Ziele verfolgt werden;"]
[null,"-","die Gewähr für eine den Zielen des Grundgesetzes förderliche Arbeit gegeben ist."]
["Belehrung"]
[null,"Der  Antragsteller wird belehrt, dass:"]
[null,"-","die Ausgaben - sofern eine  Vorsteuerabzugsberechtigung vorliegt - ohne Umsatzsteuer anzugeben sind;"]
[{"$nulls":15},"Es liegt eine Vorsteuerabzugsberechtigung vor (ankreuzen, sofern zutreffend): "]
[null,"-","Änderungen, die Auswirkungen auf den Antrag haben, unverzüglich und unaufgefordert anzuzeigen sind."]
[]
[]
[null,null,"Ort, Datum",{"$nulls":5},"rechtsverbindliche Unterschrift(en)",{"$nulls":5},"in Block-/PC-Schrift"]
["Anlagen: Angaben zu jeder  Maßnahme, Maßnahmebeschreibungen(en), Vertretungsberechtigung"]

{"sheet":"Vertretungsberechtigung","index":2,"n_rows":49,"n_cols":14,"rows_kept":49,"merged":[[0,13,0,16],[2,13,2,16],[4,0,4,16],[6,0,6,4],[9,8,9,16],[12,0,12,16],[13,0,15,4],[13,5,13,16],[14,5,14,16],[17,0,17,4],[17,5,17,16],[18,0,19,4],[18,5,18,16],[21,0,21,16],[22,5,22,16],[25,0,25,16],[26,0,28,4],[26,5,26,16],[27,5,27,16],[32,1,32,16],[34,1,34,11],[38,1,38,16],[41,14,41,16],[43,0,44,15],[45,0,45,15],[47,0,47,3],[47,12,47,16]]}
["Landeshauptstadt Dresden - Jugendamt",{"$nulls":7},"Fördermittelantrag IB 2017",{"$nulls":3},"Az:",{"$f":"Deckblatt!L3","v":0}]
[]
[{"$nulls":12},"Vertretungsregelung für das Jahr / die Jahre"]
["Träger:"]
[{"$f":"Deckblatt!A3","v":0}]
[]
["Der Antragsteller ist (ankreuzen)"]
[]
["1.1 rechtsfähig",{"$nulls":5},"1.2 nicht rechtsfähig",null,"und ggf. Teil der rechtsfähigen Körperschaft:"]
[]
[]
["Vertretungsregelungen"]
["Der Antragsteller wird gemäß Satzung/Ordnung/Gesellschaftervertrag nach innen und außen vertreten durch:"]
["allein:"]
[]
[{"$nulls":5},"Name, Vorname, Funktion (z. B. Erster Vorsitzender)"]
[]
["gemeinsam:"]
["(Vertretung durch mindestens zwei Personen gemeinschaftlich u.gleichzeitig)"]
[{"$nulls":5},"Namen, Vornamen, Funktionen (z.B. Vorsitzender und stellvertretender Vorsitzender)"]
["Geschäftsführer:"]
["Der vertretungsberechtigte Vorstand hat gemäß Satzung/Ordung/Gesellschaftervertrag folgende Person zum Geschäftsführer ernannt. Die Vollmacht/Ernennung ist beizufügen (sofern noch nicht vorliegend)."]
[]
[{"$nulls":5},"Name, Vorname"]
["Vollmacht/Unterschriftsberechtigung "]
["Der vertretungsberechtigte Vorstand bzw. ernannte Geschäftsführer erteilt folgender/n Person(en) die alleinige oder gemeinsame Vollmacht zur Ausübung diverser Geschäftsgänge:"]
[]
[]
[{"$nulls":5},"Namen, Vornamen"]
["Die Vollmacht umfasst folgende Geschäfts- bzw. Verwaltungshandlungen (ankreuzen und ggf. ergänzen):"]
[" - für alle Angebote"]
[" - für das/die Angebot(e)"]
[]
[]
[null," - Beantragung von Fördermitteln"]
[null," - Einlegen von Rechtsmitteln (Widerspruch, Klage)"]
[null," - Verwendungsnachweis"]
[null," - andere das Verwaltungsverfahren betreffende Verwaltungshandlungen wie…"]
[]
[]
["Mitglieder des Stadtjugendring Dresden e.  V.:"]
["Die Vollmacht zwischen der o. g. Körperschaft und dem Stadtjugendring Dresden e. V. vom "]
[]
["behält hinsichtlich der Ermächtigung zu allen Verwaltungshandlungen, die Beantragung und Gewährung von Fördermitteln der Landeshauptstadt Dresden betreffend, ihre Gültigkeit (ankreuzen, sofern zutreffend):"]
[]
["Die aktuelle Vollmacht ist beigefügt (ankreuzen)"]
[]
[]
["Ort, Datum",{"$nulls":4},"rechtsverbindliche Unterschrift(en)",{"$nulls":6},"in Block-/PC-Schrift"]

{"sheet":"Maßnahme 1","index":3,"n_rows":51,"n_cols":17,"rows_kept":51,"merged":[[0,14,0,16],[4,5,4,16],[6,0,6,8],[6,9,6,16],[7,0,7,8],[7,9,7,16],[8,0,8,8],[8,9,8,12],[8,13,8,16],[9,0,9,8],[9,9,9,12],[9,13,9,16],[10,0,11,8],[10,9,10,16],[11,9,12,16],[12,0,12,8],[14,0,15,1],[14,2,14,12],[15,2,15,3],[15,4,15,5],[15,6,15,7],[15,8,15,9],[15,10,15,12],[15,13,19,16],[16,0,16,1],[16,2,17,3],[16,4,17,5],[16,6,17,7],[16,8,17,9],[16,10,17,12],[17,0,17,1],[18,0,18,1],[18,2,19,3],[18,4,19,5],[18,6,19,7],[18,8,19,9],[18,10,19,12],[19,0,19,1],[21,0,21,11],[21,12,30,16],[22,0,22,7],[22,8,22,11],[23,0,24,7],[23,8,24,11],[25,0,25,7],[25,8,25,11],[26,0,26,7],[26,8,26,11],[27,0,27,7],[27,8,27,11],[28,0,28,7],[28,8,29,11],[29,0,29,7],[30,0,30,7],[30,8,30,11],[31,0,31,11],[32,0,32,7],[32,8,32,11],[32,12,32,16],[33,0,33,7],[33,8,33,11],[33,12,33,14],[33,15,33,16],[34,0,34,7],[34,8,34,11],[34,15,34,16],[35,0,35,7],[35,8,35,11],[35,15,35,16],[36,8,36,11],[37,0,37,11],[37,15,37,16],[38,0,38,7],[38,8,38,11],[39,0,39,7],[39,8,41,11],[39,15,39,16],[40,1,40,7],[42,0,42,7],[42,8,44,11],[42,12,44,16],[43,1,43,7],[45,0,45,7],[45,8,45,11],[45,12,45,16],[46,0,46,7],[46,8,46,11],[47,8,47,11],[48,0,48,16]]}
["Landeshauptstadt Dresden - Jugendamt",{"$nulls":7},{"$f":"Vertretungsberechtigung!I1","v":"Fördermittelantrag IB 2017"},{"$nulls":4},"Az:",{"$f":"Deckblatt!L3","v":0}]
[]
[{"$nulls":11},"Internationale Jugendbegegnungen",{"$f":"Deckblatt!P19","v":"2017"},{"$nulls":3},"Maßnahme 1"]
[]
["Kurzbezeichnung der Maßnahme:",{"$nulls":4},{"$f":"Deckblatt!C23","v":0}]
[]
["Partner im Ausland (Land/Anschrift):",{"$nulls":8},"Durchführungsort:"]
[]
[{"$nulls":9},"Dauer der Maßnahme                (Datum von - bis):",{"$nulls":3},"Zähltage (An- und Abreisetag = 1 Tag) Nur eine Zahl eintragen!"]
[]
[{"$nulls":9},"Anschrift der Unterkunft:"]
[]
[]
[]
["Maßnahme",null,"Teilnehmer  (TN) ohne Betreuer / Übernachtung (Ü):",{"$nulls":10},"Platz für Bemerkungen:"]
[null,null,"Dresdner TN        ohne Ü",null,"Dresdner TN             mit Ü",null,"Gäste mit Ü",null,"TN gesamt",null,"Alter (von - bis)"]
["entweder",{"$nulls":7},{"$f":"C17+E17+G17","v":0}]
["in Deutschland"]
["oder",{"$nulls":7},{"$f":"E19","v":0}]
["im Ausland"]
[]
["Ausgaben - in EUR -",{"$nulls":11},"Die nachfolgende automatische Berechnung basiert auf den Förderkriterien der aktuellen Verwaltungsvorschrift. Es besteht keine Gewähr, dass diese Regeln \nauch 2017 gelten werden."]
["Unterkunft"]
["Verpflegung"]
[]
["Betreuerkosten"]
["Dolmetscherkosten"]
["Fahrtkosten"]
["Programmkosten "]
["(z. B. Eintrittsgelder, Kurtaxe, pädagogisches Arbeitsmaterial)"]
["Versicherungen"]
["weitere Ausgaben (einzeln benennen!)"]
[{"$nulls":12},"Zuschuss Betreuerkosten (sofern welche geplant sind)"]
[{"$nulls":12},"Inland",null,null,"Ausland"]
[{"$nulls":12},"D oh. Ü","D m. Ü","Gäste","m. Ü"]
[{"$nulls":12},{"$f":"IF(((C17*5*N10)*12.5/100)<I26,((C17*5*N10)*12.5/100),I26)","v":{"v":0,"d":"0.00"}},{"$f":"IF(I26<((E17*N10*10)*12.5/100),I26,((E17*N10*10)*12.5/100))","v":{"v":0,"d":"0.00"}},{"$f":"IF(I26<((G17*N10*15)*12.5/100),I26,((G17*N10*15)*12.5/100))","v":{"v":0,"d":"0.00"}},{"$f":"IF(I26<((I19*N10*20)*12.5/100),I26,((I19*N10*20)*12.5/100))","v":{"v":0,"d":"0.00"}}]
[{"$nulls":7},"gesamt",{"$f":"SUM(I23:L31)+SUM(I33:I36)","v":0},{"$nulls":4},"Teilnehmerzuschuss"]
["Finanzierung - in EUR -",{"$nulls":11},{"$f":"C17*5*N10","v":{"v":0,"d":"0.00"}},{"$f":"E17*10*N10","v":{"v":0,"d":"0.00"}},{"$f":"G17*15*N10","v":{"v":0,"d":"0.00"}},{"$f":"I19*20*N10","v":{"v":0,"d":"0.00"}}]
["beantragte Zuwendung",{"$nulls":7},{"$f":"Deckblatt!O23","v":0},{"$nulls":4},"Zwischenergebnis"]
["weitere öffentliche Mittel (EU/Bund/Land/Kommune)",{"$nulls":11},{"$f":"M36+M38","v":{"v":0,"d":"0.00"}},{"$f":"N36+N38","v":{"v":0,"d":"0.00"}},{"$f":"O36+O38","v":{"v":0,"d":"0.00"}},{"$f":"P36+P38","v":{"v":0,"d":"0.00"}}]
["Welche:"]
[]
["sonstige Finanzierungsquellen",{"$nulls":11},"Zuwendungsfähiger Anteil Jugendamt (max. 60% der Ausgaben):"]
["Art: "]
[]
["Teilnehmerbeiträge",{"$nulls":11},{"$f":"IF((M40+N40+O40+P40)<(I37*60/100),(M40+N40+O40+P40),(I37*60/100))","v":{"v":0,"d":"0.00"}}]
["weitere Eigenmittel"]
[{"$nulls":7},"gesamt",{"$f":"SUM(I39:L47)","v":0}]
["Dem Antrag ist die Maßnahmebeschreibung und der Programmablauf beizufügen."]
[]
[{"$nulls":8},{"$f":"IF(I48<>I37,\"Fehler: Ausgaben ungleich Finanzierung\",\"\")","v":""}]

{"sheet":"Maßnahmebeschreibung 1","index":4,"n_rows":9,"n_cols":17,"rows_kept":9,"merged":[[0,14,0,17],[5,0,5,3],[5,4,5,17]]}
["Landeshauptstadt Dresden - Jugendamt",{"$nulls":7},{"$f":"Vertretungsberechtigung!I1","v":"Fördermittelantrag IB 2017"},{"$nulls":4},"Az:",{"$f":"Deckblatt!L3","v":0}]
[]
[{"$nulls":11},"Internationale Jugendbegegnungen",{"$f":"Deckblatt!P19","v":"2017"},{"$nulls":3},"Maßnahme 1"]
[]
[]
["Kurzbezeichnung\nder Maßnahme:",{"$nulls":3},{"$f":"'Maßnahme 1'!F5","v":0}]
[]
["Maßnahmebeschreibung, Programmablauf "]
["Programm mit dem ausländischen Partner (ggf. Blatt anfügen)"]

{"sheet":"Maßnahme 2","index":5,"n_rows":51,"n_cols":17,"rows_kept":51,"merged":[[0,14,0,16],[4,5,4,16],[6,0,6,8],[6,9,6,16],[7,0,7,8],[7,9,7,16],[8,0,8,8],[8,9,8,12],[8,13,8,16],[9,0,9,8],[9,9,9,12],[9,13,9,16],[10,0,11,8],[10,9,10,16],[11,9,12,16],[12,0,12,8],[14,0,15,1],[14,2,14,12],[15,2,15,3],[15,4,15,5],[15,6,15,7],[15,8,15,9],[15,10,15,12],[15,13,19,16],[16,0,16,1],[16,2,17,3],[16,4,17,5],[16,6,17,7],[16,8,17,9],[16,10,17,12],[17,0,17,1],[18,0,18,1],[18,2,19,3],[18,4,19,5],[18,6,19,7],[18,8,19,9],[18,10,19,12],[19,0,19,1],[21,0,21,11],[21,12,30,16],[22,0,22,7],[22,8,22,11],[23,0,24,7],[23,8,24,11],[25,0,25,7],[25,8,25,11],[26,0,26,7],[26,8,26,11],[27,0,27,7],[27,8,27,11],[28,0,28,7],[28,8,29,11],[29,0,29,7],[30,0,30,7],[30,8,30,11],[31,0,31,11],[32,0,32,7],[32,8,32,11],[32,12,32,16],[33,0,33,7],[33,8,33,11],[33,12,33,14],[33,15,33,16],[34,0,34,7],[34,8,34,11],[34,15,34,16],[35,0,35,7],[35,8,35,11],[35,15,35,16],[36,8,36,11],[37,0,37,11],[37,15,37,16],[38,0,38,7],[38,8,38,11],[39,0,39,7],[39,8,41,11],[39,15,39,16],[40,1,40,7],[42,0,42,7],[42,8,44,11],[42,12,44,16],[43,1,43,7],[45,0,45,7],[45,8,45,11],[45,12,45,16],[46,0,46,7],[46,8,46,11],[47,8,47,11],[48,0,48,16]]}
["Landeshauptstadt Dresden - Jugendamt",{"$nulls":7},{"$f":"Vertretungsberechtigung!I1","v":"Fördermittelantrag IB 2017"},{"$nulls":4},"Az:",{"$f":"Deckblatt!L3","v":0}]
[]
[{"$nulls":11},"Internationale Jugendbegegnungen",{"$f":"Deckblatt!P19","v":"2017"},{"$nulls":3},"Maßnahme 2"]
[]
["Kurzbezeichnung der Maßnahme:",{"$nulls":4},{"$f":"Deckblatt!C25","v":0}]
[]
["Partner im Ausland (Land/Anschrift):",{"$nulls":8},"Durchführungsort:"]
[]
[{"$nulls":9},"Dauer der Maßnahme                (Datum von - bis):",{"$nulls":3},"Zähltage (An- und Abreisetag = 1 Tag) Nur eine Zahl eintragen!"]
[]
[{"$nulls":9},"Anschrift der Unterkunft:"]
[]
[]
[]
["Maßnahme",null,"Teilnehmer  (TN) ohne Betreuer / Übernachtung (Ü):",{"$nulls":10},"Platz für Bemerkungen:"]
[null,null,"Dresdner TN        ohne Ü",null,"Dresdner TN             mit Ü",null,"Gäste mit Ü",null,"TN gesamt",null,"Alter (von - bis)"]
["entweder",{"$nulls":7},{"$f":"C17+E17+G17","v":0}]
["in Deutschland"]
["oder",{"$nulls":7},{"$f":"E19","v":0}]
["im Ausland"]
[]
["Ausgaben - in EUR -",{"$nulls":11},"Die nachfolgende automatische Berechnung basiert auf den Förderkriterien der aktuellen Verwaltungsvorschrift. Es besteht keine Gewähr, dass diese Regeln \nauch 2017 gelten werden."]
["Unterkunft"]
["Verpflegung"]
[]
["Betreuerkosten"]
["Dolmetscherkosten"]
["Fahrtkosten"]
["Programmkosten "]
["(z. B. Eintrittsgelder, Kurtaxe, pädagogisches Arbeitsmaterial)"]
["Versicherungen"]
["weitere Ausgaben (einzeln benennen!)"]
[{"$nulls":12},"Zuschuss Betreuerkosten (sofern welche geplant sind)"]
[{"$nulls":12},"Inland",null,null,"Ausland"]
[{"$nulls":12},"D oh. Ü","D m. Ü","Gäste","m. Ü"]
[{"$nulls":12},{"$f":"IF(((C17*5*N10)*12.5/100)<I26,((C17*5*N10)*12.5/100),I26)","v":{"v":0,"d":"0.00"}},{"$f":"IF(I26<((E17*N10*10)*12.5/100),I26,((E17*N10*10)*12.5/100))","v":{"v":0,"d":"0.00"}},{"$f":"IF(I26<((G17*N10*15)*12.5/100),I26,((G17*N10*15)*12.5/100))","v":{"v":0,"d":"0.00"}},{"$f":"IF(I26<((I19*N10*20)*12.5/100),I26,((I19*N10*20)*12.5/100))","v":{"v":0,"d":"0.00"}}]
[{"$nulls":7},"gesamt",{"$f":"SUM(I23:L31)+SUM(I33:I36)","v":0},{"$nulls":4},"Teilnehmerzuschuss"]
["Finanzierung - in EUR -",{"$nulls":11},{"$f":"C17*5*N10","v":{"v":0,"d":"0.00"}},{"$f":"E17*10*N10","v":{"v":0,"d":"0.00"}},{"$f":"G17*15*N10","v":{"v":0,"d":"0.00"}},{"$f":"I19*20*N10","v":{"v":0,"d":"0.00"}}]
["beantragte Zuwendung",{"$nulls":7},{"$f":"Deckblatt!O25","v":0},{"$nulls":4},"Zwischenergebnis"]
["weitere öffentliche Mittel (EU/Bund/Land/Kommune)",{"$nulls":11},{"$f":"M36+M38","v":{"v":0,"d":"0.00"}},{"$f":"N36+N38","v":{"v":0,"d":"0.00"}},{"$f":"O36+O38","v":{"v":0,"d":"0.00"}},{"$f":"P36+P38","v":{"v":0,"d":"0.00"}}]
["Welche:"]
[]
["sonstige Finanzierungsquellen",{"$nulls":11},"Zuwendungsfähiger Anteil Jugendamt (max. 60% der Ausgaben):"]
["Art: "]
[]
["Teilnehmerbeiträge",{"$nulls":11},{"$f":"IF((M40+N40+O40+P40)<(I37*60/100),(M40+N40+O40+P40),(I37*60/100))","v":{"v":0,"d":"0.00"}}]
["weitere Eigenmittel"]
[{"$nulls":7},"gesamt",{"$f":"SUM(I39:L47)","v":0}]
["Dem Antrag ist die Maßnahmebeschreibung und der Programmablauf beizufügen."]
[]
[{"$nulls":8},{"$f":"IF(I48<>I37,\"Fehler: Ausgaben ungleich Finanzierung\",\"\")","v":""}]

{"sheet":"Maßnahmebeschreibung 2","index":6,"n_rows":9,"n_cols":17,"rows_kept":9,"merged":[[0,14,0,17],[5,0,5,3],[5,4,5,17]]}
["Landeshauptstadt Dresden - Jugendamt",{"$nulls":7},{"$f":"Vertretungsberechtigung!I1","v":"Fördermittelantrag IB 2017"},{"$nulls":4},"Az:",{"$f":"Deckblatt!L3","v":0}]
[]
[{"$nulls":11},"Internationale Jugendbegegnungen",{"$f":"Deckblatt!P19","v":"2017"},{"$nulls":3},"Maßnahme 2"]
[]
[]
["Kurzbezeichnung\nder Maßnahme:",{"$nulls":3},{"$f":"Deckblatt!C25","v":0}]
[]
["Maßnahmebeschreibung, Programmablauf "]
["Programm mit dem ausländischen Partner (ggf. Blatt anfügen)"]

{"sheet":"Maßnahme 3","index":7,"n_rows":51,"n_cols":17,"rows_kept":51,"merged":[[0,14,0,16],[4,5,4,16],[6,0,6,8],[6,9,6,16],[7,0,7,8],[7,9,7,16],[8,0,8,8],[8,9,8,12],[8,13,8,16],[9,0,9,8],[9,9,9,12],[9,13,9,16],[10,0,11,8],[10,9,10,16],[11,9,12,16],[12,0,12,8],[14,0,15,1],[14,2,14,12],[15,2,15,3],[15,4,15,5],[15,6,15,7],[15,8,15,9],[15,10,15,12],[15,13,19,16],[16,0,16,1],[16,2,17,3],[16,4,17,5],[16,6,17,7],[16,8,17,9],[16,10,17,12],[17,0,17,1],[18,0,18,1],[18,2,19,3],[18,4,19,5],[18,6,19,7],[18,8,19,9],[18,10,19,12],[19,0,19,1],[21,0,21,11],[21,12,30,16],[22,0,22,7],[22,8,22,11],[23,0,24,7],[23,8,24,11],[25,0,25,7],[25,8,25,11],[26,0,26,7],[26,8,26,11],[27,0,27,7],[27,8,27,11],[28,0,28,7],[28,8,29,11],[29,0,29,7],[30,0,30,7],[30,8,30,11],[31,0,31,11],[32,0,32,7],[32,8,32,11],[32,12,32,16],[33,0,33,7],[33,8,33,11],[33,12,33,14],[33,15,33,16],[34,0,34,7],[34,8,34,11],[34,15,34,16],[35,0,35,7],[35,8,35,11],[35,15,35,16],[36,8,36,11],[37,0,37,11],[37,15,37,16],[38,0,38,7],[38,8,38,11],[39,0,39,7],[39,8,41,11],[39,15,39,16],[40,1,40,7],[42,0,42,7],[42,8,44,11],[42,12,44,16],[43,1,43,7],[45,0,45,7],[45,8,45,11],[45,12,45,16],[46,0,46,7],[46,8,46,11],[47,8,47,11],[48,0,48,16]]}
["Landeshauptstadt Dresden - Jugendamt",{"$nulls":7},{"$f":"Vertretungsberechtigung!I1","v":"Fördermittelantrag IB 2017"},{"$nulls":4},"Az:",{"$f":"Deckblatt!L3","v":0}]
[]
[{"$nulls":11},"Internationale Jugendbegegnungen",{"$f":"Deckblatt!P19","v":"2017"},{"$nulls":3},"Maßnahme 3"]
[]
["Kurzbezeichnung der Maßnahme:",{"$nulls":4},{"$f":"Deckblatt!C27","v":0}]
[]
["Partner im Ausland (Land/Anschrift):",{"$nulls":8},"Durchführungsort:"]
[]
[{"$nulls":9},"Dauer der Maßnahme                (Datum von - bis):",{"$nulls":3},"Zähltage (An- und Abreisetag = 1 Tag) Nur eine Zahl eintragen!"]
[]
[{"$nulls":9},"Anschrift der Unterkunft:"]
[]
[]
[]
["Maßnahme",null,"Teilnehmer  (TN) ohne Betreuer / Übernachtung (Ü):",{"$nulls":10},"Platz für Bemerkungen:"]
[null,null,"Dresdner TN        ohne Ü",null,"Dresdner TN             mit Ü",null,"Gäste mit Ü",null,"TN gesamt",null,"Alter (von - bis)"]
["entweder",{"$nulls":7},{"$f":"C17+E17+G17","v":0}]
["in Deutschland"]
["oder",{"$nulls":7},{"$f":"E19","v":0}]
["im Ausland"]
[]
["Ausgaben - in EUR -",{"$nulls":11},"Die nachfolgende automatische Berechnung basiert auf den Förderkriterien der aktuellen Verwaltungsvorschrift. Es besteht keine Gewähr, dass diese Regeln \nauch 2017 gelten werden."]
["Unterkunft"]
["Verpflegung"]
[]
["Betreuerkosten"]
["Dolmetscherkosten"]
["Fahrtkosten"]
["Programmkosten "]
["(z. B. Eintrittsgelder, Kurtaxe, pädagogisches Arbeitsmaterial)"]
["Versicherungen"]
["weitere Ausgaben (einzeln benennen!)"]
[{"$nulls":12},"Zuschuss Betreuerkosten (sofern welche geplant sind)"]
[{"$nulls":12},"Inland",null,null,"Ausland"]
[{"$nulls":12},"D oh. Ü","D m. Ü","Gäste","m. Ü"]
[{"$nulls":12},{"$f":"IF(((C17*5*N10)*12.5/100)<I26,((C17*5*N10)*12.5/100),I26)","v":{"v":0,"d":"0.00"}},{"$f":"IF(I26<((E17*N10*10)*12.5/100),I26,((E17*N10*10)*12.5/100))","v":{"v":0,"d":"0.00"}},{"$f":"IF(I26<((G17*N10*15)*12.5/100),I26,((G17*N10*15)*12.5/100))","v":{"v":0,"d":"0.00"}},{"$f":"IF(I26<((I19*N10*20)*12.5/100),I26,((I19*N10*20)*12.5/100))","v":{"v":0,"d":"0.00"}}]
[{"$nulls":7},"gesamt",{"$f":"SUM(I23:L31)+SUM(I33:I36)","v":0},{"$nulls":4},"Teilnehmerzuschuss"]
["Finanzierung - in EUR -",{"$nulls":11},{"$f":"C17*5*N10","v":{"v":0,"d":"0.00"}},{"$f":"E17*10*N10","v":{"v":0,"d":"0.00"}},{"$f":"G17*15*N10","v":{"v":0,"d":"0.00"}},{"$f":"I19*20*N10","v":{"v":0,"d":"0.00"}}]
["beantragte Zuwendung",{"$nulls":7},{"$f":"Deckblatt!O27","v":0},{"$nulls":4},"Zwischenergebnis"]
["weitere öffentliche Mittel (EU/Bund/Land/Kommune)",{"$nulls":11},{"$f":"M36+M38","v":{"v":0,"d":"0.00"}},{"$f":"N36+N38","v":{"v":0,"d":"0.00"}},{"$f":"O36+O38","v":{"v":0,"d":"0.00"}},{"$f":"P36+P38","v":{"v":0,"d":"0.00"}}]
["Welche:"]
[]
["sonstige Finanzierungsquellen",{"$nulls":11},"Zuwendungsfähiger Anteil Jugendamt (max. 60% der Ausgaben):"]
["Art: "]
[]
["Teilnehmerbeiträge",{"$nulls":11},{"$f":"IF((M40+N40+O40+P40)<(I37*60/100),(M40+N40+O40+P40),(I37*60/100))","v":{"v":0,"d":"0.00"}}]
["weitere Eigenmittel"]
[{"$nulls":7},"gesamt",{"$f":"SUM(I39:L47)","v":0}]
["Dem Antrag ist die Maßnahmebeschreibung und der Programmablauf beizufügen."]
[]
[{"$nulls":8},{"$f":"IF(I48<>I37,\"Fehler: Ausgaben ungleich Finanzierung\",\"\")","v":""}]

{"sheet":"Maßnahmebeschreibung 3","index":8,"n_rows":9,"n_cols":17,"rows_kept":9,"merged":[[0,14,0,17],[5,0,5,3],[5,4,5,17]]}
["Landeshauptstadt Dresden - Jugendamt",{"$nulls":7},{"$f":"Vertretungsberechtigung!I1","v":"Fördermittelantrag IB 2017"},{"$nulls":4},"Az:",{"$f":"Deckblatt!L3","v":0}]
[]
[{"$nulls":11},"Internationale Jugendbegegnungen",{"$f":"Deckblatt!P19","v":"2017"},{"$nulls":3},"Maßnahme 3"]
[]
[]
["Kurzbezeichnung\nder Maßnahme:",{"$nulls":3},{"$f":"Deckblatt!C27","v":0}]
[]
["Maßnahmebeschreibung, Programmablauf "]
["Programm mit dem ausländischen Partner (ggf. Blatt anfügen)"]

{"sheet":"Maßnahme 4","index":9,"n_rows":51,"n_cols":17,"rows_kept":51,"merged":[[0,14,0,16],[4,5,4,16],[6,0,6,8],[6,9,6,16],[7,0,7,8],[7,9,7,16],[8,0,8,8],[8,9,8,12],[8,13,8,16],[9,0,9,8],[9,9,9,12],[9,13,9,16],[10,0,11,8],[10,9,10,16],[11,9,12,16],[12,0,12,8],[14,0,15,1],[14,2,14,12],[15,2,15,3],[15,4,15,5],[15,6,15,7],[15,8,15,9],[15,10,15,12],[15,13,19,16],[16,0,16,1],[16,2,17,3],[16,4,17,5],[16,6,17,7],[16,8,17,9],[16,10,17,12],[17,0,17,1],[18,0,18,1],[18,2,19,3],[18,4,19,5],[18,6,19,7],[18,8,19,9],[18,10,19,12],[19,0,19,1],[21,0,21,11],[21,12,30,16],[22,0,22,7],[22,8,22,11],[23,0,24,7],[23,8,24,11],[25,0,25,7],[25,8,25,11],[26,0,26,7],[26,8,26,11],[27,0,27,7],[27,8,27,11],[28,0,28,7],[28,8,29,11],[29,0,29,7],[30,0,30,7],[30,8,30,11],[31,0,31,11],[32,0,32,7],[32,8,32,11],[32,12,32,16],[33,0,33,7],[33,8,33,11],[33,12,33,14],[33,15,33,16],[34,0,34,7],[34,8,34,11],[34,15,34,16],[35,0,35,7],[35,8,35,11],[35,15,35,16],[36,8,36,11],[37,0,37,11],[37,15,37,16],[38,0,38,7],[38,8,38,11],[39,0,39,7],[39,8,41,11],[39,15,39,16],[40,1,40,7],[42,0,42,7],[42,8,44,11],[42,12,44,16],[43,1,43,7],[45,0,45,7],[45,8,45,11],[45,12,45,16],[46,0,46,7],[46,8,46,11],[47,8,47,11],[48,0,48,16]]}
["Landeshauptstadt Dresden - Jugendamt",{"$nulls":7},{"$f":"Vertretungsberechtigung!I1","v":"Fördermittelantrag IB 2017"},{"$nulls":4},"Az:",{"$f":"Deckblatt!L3","v":0}]
[]
[{"$nulls":11},"Internationale Jugendbegegnungen",{"$f":"Deckblatt!P19","v":"2017"},{"$nulls":3},"Maßnahme 4"]
[]
["Kurzbezeichnung der Maßnahme:",{"$nulls":4},{"$f":"Deckblatt!C29","v":0}]
[]
["Partner im Ausland (Land/Anschrift):",{"$nulls":8},"Durchführungsort:"]
[]
[{"$nulls":9},"Dauer der Maßnahme                (Datum von - bis):",{"$nulls":3},"Zähltage (An- und Abreisetag = 1 Tag) Nur eine Zahl eintragen!"]
[]
[{"$nulls":9},"Anschrift der Unterkunft:"]
[]
[]
[]
["Maßnahme",null,"Teilnehmer  (TN) ohne Betreuer / Übernachtung (Ü):",{"$nulls":10},"Platz für Bemerkungen:"]
[null,null,"Dresdner TN        ohne Ü",null,"Dresdner TN             mit Ü",null,"Gäste mit Ü",null,"TN gesamt",null,"Alter (von - bis)"]
["entweder",{"$nulls":7},{"$f":"C17+E17+G17","v":0}]
["in Deutschland"]
["oder",{"$nulls":7},{"$f":"E19","v":0}]
["im Ausland"]
[]
["Ausgaben - in EUR -",{"$nulls":11},"Die nachfolgende automatische Berechnung basiert auf den Förderkriterien der aktuellen Verwaltungsvorschrift. Es besteht keine Gewähr, dass diese Regeln \nauch 2017 gelten werden."]
["Unterkunft"]
["Verpflegung"]
[]
["Betreuerkosten"]
["Dolmetscherkosten"]
["Fahrtkosten"]
["Programmkosten "]
["(z. B. Eintrittsgelder, Kurtaxe, pädagogisches Arbeitsmaterial)"]
["Versicherungen"]
["weitere Ausgaben (einzeln benennen!)"]
[{"$nulls":12},"Zuschuss Betreuerkosten (sofern welche geplant sind)"]
[{"$nulls":12},"Inland",null,null,"Ausland"]
[{"$nulls":12},"D oh. Ü","D m. Ü","Gäste","m. Ü"]
[{"$nulls":12},{"$f":"IF(((C17*5*N10)*12.5/100)<I26,((C17*5*N10)*12.5/100),I26)","v":{"v":0,"d":"0.00"}},{"$f":"IF(I26<((E17*N10*10)*12.5/100),I26,((E17*N10*10)*12.5/100))","v":{"v":0,"d":"0.00"}},{"$f":"IF(I26<((G17*N10*15)*12.5/100),I26,((G17*N10*15)*12.5/100))","v":{"v":0,"d":"0.00"}},{"$f":"IF(I26<((I19*N10*20)*12.5/100),I26,((I19*N10*20)*12.5/100))","v":{"v":0,"d":"0.00"}}]
[{"$nulls":7},"gesamt",{"$f":"SUM(I23:L31)+SUM(I33:I36)","v":0},{"$nulls":4},"Teilnehmerzuschuss"]
["Finanzierung - in EUR -",{"$nulls":11},{"$f":"C17*5*N10","v":{"v":0,"d":"0.00"}},{"$f":"E17*10*N10","v":{"v":0,"d":"0.00"}},{"$f":"G17*15*N10","v":{"v":0,"d":"0.00"}},{"$f":"I19*20*N10","v":{"v":0,"d":"0.00"}}]
["beantragte Zuwendung",{"$nulls":7},{"$f":"Deckblatt!O29","v":0},{"$nulls":4},"Zwischenergebnis"]
["weitere öffentliche Mittel (EU/Bund/Land/Kommune)",{"$nulls":11},{"$f":"M36+M38","v":{"v":0,"d":"0.00"}},{"$f":"N36+N38","v":{"v":0,"d":"0.00"}},{"$f":"O36+O38","v":{"v":0,"d":"0.00"}},{"$f":"P36+P38","v":{"v":0,"d":"0.00"}}]
["Welche:"]
[]
["sonstige Finanzierungsquellen",{"$nulls":11},"Zuwendungsfähiger Anteil Jugendamt (max. 60% der Ausgaben):"]
["Art: "]
[]
["Teilnehmerbeiträge",{"$nulls":11},{"$f":"IF((M40+N40+O40+P40)<(I37*60/100),(M40+N40+O40+P40),(I37*60/100))","v":{"v":0,"d":"0.00"}}]
["weitere Eigenmittel"]
[{"$nulls":7},"gesamt",{"$f":"SUM(I39:L47)","v":0}]
["Dem Antrag ist die Maßnahmebeschreibung und der Programmablauf beizufügen."]
[]
[{"$nulls":8},{"$f":"IF(I48<>I37,\"Fehler: Ausgaben ungleich Finanzierung\",\"\")","v":""}]

{"sheet":"Maßnahmebeschreibung 4","index":10,"n_rows":9,"n_cols":17,"rows_kept":9,"merged":[[0,14,0,17],[5,0,5,3],[5,4,5,17]]}
["Landeshauptstadt Dresden - Jugendamt",{"$nulls":7},{"$f":"Vertretungsberechtigung!I1","v":"Fördermittelantrag IB 2017"},{"$nulls":4},"Az:",{"$f":"Deckblatt!L3","v":0}]
[]
[{"$nulls":11},"Internationale Jugendbegegnungen",{"$f":"Deckblatt!P19","v":"2017"},{"$nulls":3},"Maßnahme 4"]
[]
[]
["Kurzbezeichnung\nder Maßnahme:",{"$nulls":3},{"$f":"Deckblatt!C29","v":0}]
[]
["Maßnahmebeschreibung, Programmablauf "]
["Programm mit dem ausländischen Partner (ggf. Blatt anfügen)"]